bitfinex-derivatives/quotes_SOLF0:USTF0_20250507
["timestamp","ask_amount","ask_price","bid_price","bid_amount"]
[1746596356607,9.23088784,145.73,145.71,28.68]
[1746596356904,4.52783946,145.72,145.71,28.68]
[1746596357105,9.23088784,145.72,145.71,28.68]
[1746596358298,16.09438784,145.72,145.71,28.68]
[1746596359510,16.0948907,145.72,145.71,28.68]
[1746596361310,16.08975139,145.72,145.71,28.68]
[1746596363909,9.22625139,145.72,145.71,28.68]
[1746596364914,9.2215939,145.72,145.71,28.68]
[1746596366017,16.0850939,145.72,145.71,28.68]
[1746596368714,16.07760861,145.72,145.71,28.68]
[1746596368911,9.21410861,145.72,145.71,28.68]
[1746596369918,9.21342452,145.72,145.71,28.68]
[1746596370222,9.21342452,145.72,145.71,35.5439]
[1746596371922,9.21342452,145.72,145.71,28.68]
[1746596373916,16.07692452,145.72,145.71,28.68]
[1746596374621,6.8639,145.71,145.7,9.019e-05]
[1746596374917,11.37427614,145.71,145.7,9.019e-05]
[1746596375318,16.07732452,145.71,145.7,9.019e-05]
[1746596375819,16.08804789,145.71,145.7,9.019e-05]
[1746596376522,20.83807934,145.71,145.7,9.019e-05]
[1746596377628,20.83447637,145.71,145.7,9.019e-05]
[1746596379528,20.83477419,145.71,145.7,9.019e-05]
[1746596381229,20.83615211,145.71,145.7,9.019e-05]
[1746596383230,20.83524135,145.71,145.7,9.019e-05]
[1746596383629,20.83483451,145.71,145.7,9.019e-05]
[1746596384231,16.31697983,145.71,145.7,9.019e-05]
[1746596384932,20.83478451,145.71,145.7,9.019e-05]
[1746596385535,16.31697983,145.71,145.7,9.019e-05]
[1746596385726,20.83544163,145.71,145.7,9.019e-05]
[1746596386928,16.08541018,145.71,145.7,9.019e-05]
[1746596387131,20.83544163,145.71,145.7,9.019e-05]
[1746596387433,20.83502032,145.71,145.7,9.019e-05]
[1746596392831,16.31697983,145.71,145.7,9.019e-05]
[1746596393136,20.82953783,145.71,145.7,9.019e-05]
[1746596394637,20.82689973,145.71,145.7,9.019e-05]
[1746596395229,16.07686828,145.71,145.7,9.019e-05]
[1746596396443,16.07093138,145.71,145.7,9.019e-05]
[1746596398342,9.20703138,145.71,145.7,9.019e-05]
[1746596399547,16.07093138,145.71,145.7,9.019e-05]
[1746596399845,9.20703138,145.71,145.7,9.019e-05]
[1746596400547,9.20703138,145.71,145.7,28.66009019]
[1746596401040,16.07093138,145.71,145.7,28.66009019]
[1746596402243,9.20703138,145.71,145.7,28.66009019]
[1746596402944,16.07093138,145.71,145.7,28.66009019]
[1746596403145,16.05338973,145.71,145.7,28.66009019]
[1746596403549,9.18948973,145.71,145.7,28.66009019]
[1746596404252,9.18948973,145.71,145.7,35.52449019]
[1746596404845,4.70304838,145.71,145.7,35.52449019]
[1746596405046,9.18079601,145.71,145.7,35.52449019]
[1746596407250,9.18079601,145.71,145.7,40.27452164]
[1746596412253,9.17796497,145.71,145.7,40.27452164]
[1746596413047,9.17744837,145.71,145.7,40.27452164]
[1746596413254,6.8622,145.75,145.72,6.8632]
[1746596413451,4.47489026,145.74,145.72,6.8632]
[1746596413650,4.47489026,145.73,145.72,6.8632]
[1746596413953,6.8622,145.75,145.73,6.8629]
[1746596414153,4.47626565,145.74,145.73,6.8629]
[1746596414755,4.47474737,145.74,145.72,6.8633]
[1746596414956,6.8618,145.76,145.73,4.75003145]
[1746596415143,4.47217369,145.75,145.73,4.75003145]
[1746596415348,4.47217369,145.74,145.73,4.75003145]
[1746596416252,4.47217369,145.74,145.73,11.61303145]
[1746596416746,149.19245659,145.78,145.75,6.8618]
[1746596416950,4.46928269,145.77,145.75,35.5218]
[1746596417152,4.46928269,145.76,145.75,35.5218]
[1746596418050,4.46928269,145.76,145.75,28.66]
[1746596418355,11.33088269,145.76,145.75,28.66]
[1746596419457,11.33071584,145.76,145.75,28.66]
[1746596419951,4.46911584,145.76,145.75,28.66]
[1746596420151,4.46911584,145.76,145.75,33.41003145]
[1746596420556,4.46911584,145.76,145.75,40.27203145]
[1746596421260,4.46675679,145.76,145.75,40.27203145]
[1746596422760,156.05315659,145.78,145.75,40.27203145]
[1746596422961,4.46480289,145.77,145.75,40.27203145]
[1746596423157,156.05315659,145.78,145.75,40.27203145]
[1746596423364,4.4650417,145.77,145.75,40.27203145]
[1746596423664,156.05315659,145.78,145.75,40.27203145]
[1746596423864,4.46458384,145.77,145.75,40.27203145]
[1746596424163,4.46454024,145.76,145.75,33.41003145]
[1746596424363,6.8613,145.77,145.75,33.41003145]
[1746596424864,4.46589662,145.76,145.75,33.41003145]
[1746596425066,11.32749662,145.76,145.75,33.41003145]
[1746596425364,15.92339497,145.76,145.75,33.41003145]
[1746596425561,11.45749835,145.76,145.75,33.41003145]
[1746596428460,4.59589835,145.76,145.75,33.41003145]
[1746596429165,4.59589835,145.76,145.75,40.27203145]
[1746596429769,6.8602,145.79,145.76,6.8612]
[1746596430065,4.46624235,145.78,145.76,6.8612]
[1746596430265,4.59660935,145.78,145.76,6.8612]
[1746596430769,6.8602,145.79,145.77,6.8611]
[1746596431167,6.8602,145.79,145.75,33.41003145]
[1746596431367,6.8602,145.79,145.76,6.8612]
[1746596431568,37.56973145,145.83,145.77,4.75003145]
[1746596431767,4.46505003,145.82,145.79,4.75003145]
[1746596431969,4.46511019,145.81,145.79,4.75003145]
[1746596432266,4.46511019,145.8,145.79,4.75003145]
[1746596432467,9.06138758,145.8,145.79,4.75003145]
[1746596432667,15.92108758,145.8,145.79,4.75003145]
[1746596433369,6.8602,145.79,145.77,11.61093145]
[1746596433769,6.8602,145.79,145.77,4.75003145]
[1746596434070,4.59627739,145.78,145.77,4.75003145]
[1746596434365,4.59627739,145.78,145.77,11.61113145]
[1746596434569,4.59627739,145.78,145.77,4.75003145]
[1746596435669,4.59627739,145.78,145.75,36.07036792]
[1746596436473,6.8599,145.8,145.77,6.8607]
[1746596437771,6.8599,145.8,145.78,6.8606]
[1746596437978,6.8595,145.81,145.78,6.8606]
[1746596438166,4.46647412,145.8,145.79,28.68]
[1746596438371,9.06524283,145.8,145.79,28.68]
[1746596438572,4.59876871,145.8,145.79,35.5402]
[1746596440075,4.59876871,145.8,145.79,28.68]
[1746596442679,4.60385377,145.8,145.79,28.68]
[1746596445480,11.46355377,145.8,145.79,28.68]
[1746596445674,15.93281287,145.8,145.79,28.68]
[1746596445874,11.46355377,145.8,145.79,28.68]
[1746596446982,9.07208469,145.8,145.79,28.68]
[1746596447382,9.07208469,145.8,145.79,35.5402]
[1746596450483,9.07831643,145.8,145.79,35.5402]
[1746596452288,9.07957667,145.8,145.79,35.5402]
[1746596453386,4.60385377,145.8,145.79,35.5402]
[1746596453585,9.07963509,145.8,145.79,35.5402]
[1746596454690,9.07963509,145.8,145.79,28.68]
[1746596455691,9.07963509,145.8,145.79,33.42236007]
[1746596461294,15.93933509,145.8,145.79,33.42236007]
[1746596463997,9.07963509,145.8,145.79,33.42236007]
[1746596464495,15.93933509,145.8,145.79,33.42236007]
[1746596465195,9.07963509,145.8,145.79,33.42236007]
[1746596466496,9.0942824,145.8,145.79,33.42236007]
[1746596469002,15.9539824,145.8,145.79,33.42236007]
[1746596469999,15.95759463,145.8,145.79,33.42236007]
[1746596470501,9.09789463,145.8,145.79,33.42236007]
[1746596471302,9.12428922,145.8,145.79,33.42236007]
[1746596471504,9.12541094,145.8,145.79,33.42236007]
[1746596471801,9.12540926,145.8,145.79,33.42236007]
[1746596473198,2.1997,145.87,145.79,33.42236007]
[1746596473401,9.14721615,145.86,145.82,4.74013484]
[1746596473602,4.62476705,145.86,145.81,4.74049381]
[1746596473900,6.858,145.84,145.81,11.59949381]
[1746596474102,4.74049381,145.84,145.76,73.63747346]
[1746596474305,6.86,145.8,145.77,35.5207]
[1746596474806,6.86,145.8,145.77,28.66]
[1746596476003,6.86,145.8,145.78,6.8604]
[1746596476705,6.86,145.8,145.77,35.5209]
[1746596476905,6.8603,145.79,145.77,28.66]
[1746596477104,28.64,145.81,145.77,28.66]
[1746596477403,6.8606,145.78,145.77,28.66]
[1746596477604,6.8606,145.78,145.75,6.8617]
[1746596477806,4.74049381,145.8,145.74,28.68]
[1746596478102,30.8089,145.81,145.74,28.68]
[1746596478103,4.74049381,145.78,145.74,28.68]
[1746596478303,30.703,145.77,145.74,28.68]
[1746596478605,6.862,145.75,145.74,28.68]
[1746596479407,32.6909,145.77,145.71,28.68]
[1746596479704,6.86409381,145.76,145.71,28.68]
[1746596480509,6.8634,145.73,145.7,11.604984]
[1746596481709,6.8634,145.73,145.7,6.86449019]
[1746596485108,6.8634,145.73,145.7,9.019e-05]
[1746596485308,4.60541275,145.72,145.7,9.019e-05]
[1746596485709,4.60541275,145.71,145.7,9.019e-05]
[1746596487118,4.60541275,145.71,145.7,6.86449019]
[1746596487617,6.8634,145.73,145.7,6.86449019]
[1746596487818,6.8634,145.73,145.7,9.019e-05]
[1746596488218,4.59899047,145.72,145.7,9.019e-05]
[1746596488519,4.59899047,145.72,145.71,6.8639]
[1746596490219,6.8623,145.75,145.71,6.8639]
[1746596490423,4.23072206,145.74,145.71,6.8639]
[1746596490717,4.59475301,145.73,145.71,6.8639]
[1746596491014,4.59475301,145.73,145.72,6.8635]
[1746596491219,32.7109,145.77,145.7,7.41930741]
[1746596491420,8.82552724,145.76,145.7,36.09930741]
[1746596491718,11.45686317,145.76,145.73,6.863]
[1746596491910,11.45686317,145.76,145.73,35.523]
[1746596492109,4.59526317,145.75,145.73,35.523]
[1746596492621,4.59526317,145.74,145.73,35.523]
[1746596493215,10.8922,145.77,145.73,35.523]
[1746596493421,10.8922,145.77,145.74,6.8625]
[1746596493622,10.8922,145.77,145.73,28.66]
[1746596493823,4.59203212,145.76,145.73,35.5228]
[1746596494124,4.59203212,145.75,145.73,28.66]
[1746596494621,4.59203212,145.77,145.75,6.8618]
[1746596495121,9.13874732,145.76,145.75,6.8618]
[1746596495420,4.59203212,145.76,145.75,6.8618]
[1746596495724,11.45223212,145.79,145.76,6.8615]
[1746596495924,4.54711285,145.78,145.76,6.8615]
[1746596496119,4.59203212,145.77,145.76,6.8615]
[1746596496927,4.59203212,145.77,145.75,6.8618]
[1746596497325,4.59203212,145.77,145.73,36.07921722]
[1746596497519,6.8602,145.79,145.76,6.8613]
[1746596497718,4.55284226,145.78,145.76,6.8613]
[1746596497921,4.59463402,145.78,145.76,6.8613]
[1746596498223,4.59463402,145.77,145.76,6.8613]
[1746596498919,4.59463402,145.77,145.74,6.8622]
[1746596499125,2.0152,145.8,145.73,28.66]
[1746596499425,9.14917313,145.79,145.73,28.66]
[1746596499723,9.14917313,145.78,145.73,28.66]
[1746596499923,9.14917313,145.77,145.73,28.66]
[1746596500123,4.55391669,145.76,145.73,28.66]
[1746596500323,9.14917313,145.75,145.73,28.66]
[1746596500523,4.59525644,145.75,145.73,28.66]
[1746596500717,11.45775644,145.74,145.73,28.66]
[1746596503521,9.15785298,145.74,145.7,28.66009019]
[1746596503728,9.15785298,145.73,145.7,28.66009019]
[1746596503929,4.59525644,145.73,145.7,28.66009019]
[1746596504526,16.02213301,145.72,145.7,28.66009019]
[1746596504728,4.56228922,145.71,145.7,28.66009019]
[1746596505226,9.15754566,145.71,145.7,28.66009019]
[1746596506124,4.59525644,145.71,145.7,28.66009019]
[1746596508031,4.59525644,145.71,145.7,35.52449019]
[1746596510235,6.8627,145.74,145.71,6.8636]
[1746596510535,9.15350232,145.73,145.71,6.8636]
[1746596510832,4.55832387,145.72,145.71,6.8636]
[1746596511030,9.15350232,145.72,145.71,6.8636]
[1746596511734,9.155676,145.72,145.71,6.8636]
[1746596514137,9.155676,145.72,145.7,28.66009019]
[1746596514138,6.8622,145.75,145.72,6.8631]
[1746596514337,9.16086207,145.74,145.72,6.8631]
[1746596514533,4.56204111,145.73,145.72,6.8631]
[1746596515036,9.16086207,145.73,145.72,6.8631]
[1746596516040,4.59882096,145.73,145.72,6.8631]
[1746596516338,8.9805,145.76,145.73,6.8627]
[1746596516638,9.16630618,145.75,145.73,6.8627]
[1746596516938,9.16630618,145.74,145.73,6.8627]
[1746596517334,9.16676168,145.74,145.73,6.8627]
[1746596518339,3.9778,145.8,145.75,6.8617]
[1746596518532,32.6578,145.8,145.75,28.66]
[1746596518733,6.8607,145.78,145.75,28.66]
[1746596518934,30.6687,145.8,145.75,28.66]
[1746596519131,30.6687,145.8,145.76,6.8615]
[1746596519334,6.8603,145.79,145.76,6.8615]
[1746596519935,8.8486,145.8,145.77,6.8611]
[1746596521836,6.8599,145.8,145.77,6.8611]
[1746596522037,6.8599,145.8,145.78,6.8606]
[1746596522236,6.8593,145.81,145.78,6.8606]
[1746596522834,6.8589,145.82,145.79,6.8601]
[1746596523634,6.8593,145.81,145.78,6.8604]
[1746596524041,2.1315,145.84,145.76,7.41921722]
[1746596524231,6.859,145.82,145.79,6.8599]
[1746596524440,6.859,145.82,145.79,35.5199]
[1746596525742,61.5728,145.85,145.79,28.66]
[1746596525939,32.9128,145.85,145.79,28.66]
[1746596526138,6.8583,145.83,145.8,6.8592]
[1746596526639,6.859,145.82,145.79,35.52]
[1746596526832,32.9128,145.85,145.79,28.66]
[1746596527336,6.8597,145.8,145.79,28.66]
[1746596530343,11.33387811,145.8,145.79,28.66]
[1746596533140,6.8597,145.8,145.79,28.66]
[1746596533342,11.33447946,145.8,145.79,28.66]
[1746596534244,4.47477946,145.8,145.74,592.8]
[1746596534438,4.47477946,145.79,145.76,28.66]
[1746596534737,4.47477946,145.78,145.76,28.66]
[1746596534936,28.68,145.81,145.76,28.66]
[1746596535140,4.4764937,145.8,145.77,6.8608]
[1746596535339,4.4764937,145.79,145.76,36.07921722]
[1746596535539,59.5485,145.84,145.76,36.07921722]
[1746596535841,4.47633009,145.83,145.79,6.8601]
[1746596536040,6.8592,145.81,145.79,6.8601]
[1746596536242,4.47633009,145.8,145.79,6.8601]
[1746596536741,4.47608856,145.8,145.79,6.8601]
[1746596537646,4.47561629,145.8,145.79,6.8601]
[1746596537846,4.47561629,145.8,145.78,6.8604]
[1746596538147,6.8593,145.81,145.78,6.8604]
[1746596538346,4.47562217,145.8,145.78,6.8604]
[1746596538547,6.8593,145.81,145.78,6.8604]
[1746596538745,4.47556305,145.8,145.78,6.8604]
[1746596538946,6.8593,145.81,145.78,6.8604]
[1746596539151,4.47556305,145.8,145.77,35.5809]
[1746596539444,6.8597,145.8,145.77,35.5809]
[1746596539642,4.47037779,145.79,145.77,28.72]
[1746596539839,6.8606,145.79,145.76,28.66]
[1746596540357,6.8607,145.78,145.76,28.66]
[1746596540651,30.8685,145.84,145.76,28.66]
[1746596540955,6.8611,145.77,145.76,28.66]
[1746596541145,11.33013113,145.77,145.76,28.66]
[1746596541546,6.8609,145.78,145.76,28.66]
[1746596541750,28.66,145.83,145.76,28.66]
[1746596541950,4.47748158,145.82,145.76,28.66]
[1746596542151,6.8604,145.79,145.76,28.66]
[1746596542451,4.47750647,145.78,145.76,28.66]
[1746596542648,6.8604,145.79,145.76,28.66]
[1746596542848,4.4764256,145.78,145.76,28.66]
[1746596543042,6.8604,145.79,145.76,28.66]
[1746596544152,6.8604,145.79,145.77,6.861]
[1746596544753,4.475849,145.78,145.77,6.861]
[1746596545147,57.38,145.83,145.77,6.861]
[1746596545344,6.8596,145.81,145.77,6.861]
[1746596545545,4.47643465,145.8,145.77,6.861]
[1746596545750,4.47643465,145.79,145.77,6.861]
[1746596545950,57.38,145.83,145.77,6.861]
[1746596546149,4.47485394,145.82,145.77,6.861]
[1746596546352,6.8599,145.8,145.77,6.861]
[1746596546551,4.47485394,145.79,145.77,6.861]
[1746596546751,6.8599,145.8,145.77,6.861]
[1746596547044,4.4694291,145.79,145.77,6.861]
[1746596547350,6.8599,145.8,145.77,6.861]
[1746596547549,4.4695042,145.79,145.77,6.861]
[1746596547754,6.8599,145.8,145.77,6.861]
[1746596547956,4.46995204,145.79,145.78,6.8606]
[1746596549458,4.46747639,145.79,145.78,6.8606]
[1746596549956,6.8599,145.8,145.78,6.8606]
[1746596550457,4.46964559,145.79,145.78,6.8606]
[1746596550855,6.8599,145.8,145.78,6.8606]
[1746596551057,6.8599,145.8,145.77,6.8609]
[1746596551558,4.46768679,145.79,145.77,6.8609]
[1746596551850,6.8599,145.8,145.77,6.8609]
[1746596552055,4.46773126,145.79,145.77,6.8609]
[1746596552258,6.8599,145.8,145.77,6.8609]
[1746596552453,4.46865487,145.79,145.77,6.8609]
[1746596552654,6.8599,145.8,145.77,6.8609]
[1746596552854,4.46893211,145.79,145.77,6.8609]
[1746596553057,6.8599,145.8,145.77,6.8609]
[1746596553257,4.46895931,145.79,145.77,6.8609]
[1746596553457,6.8599,145.8,145.77,6.8609]
[1746596553757,4.46895933,145.79,145.77,6.8609]
[1746596553958,6.8599,145.8,145.77,6.8609]
[1746596554160,4.46925464,145.79,145.78,6.8606]
[1746596556060,4.46925464,145.79,145.78,35.5806]
[1746596557456,4.47683878,145.79,145.78,35.5806]
[1746596558563,6.8595,145.81,145.78,35.5806]
[1746596558862,4.47347167,145.8,145.78,35.5806]
[1746596559059,4.47347167,145.79,145.78,35.5806]
[1746596561364,4.47347167,145.79,145.78,28.72]
[1746596561958,6.8597,145.8,145.78,28.72]
[1746596562160,4.47978175,145.79,145.78,28.72]
[1746596565164,11.33998175,145.79,145.78,28.72]
[1746596567775,11.34214598,145.79,145.78,28.72]
[1746596568473,4.48194598,145.79,145.78,28.72]
[1746596569375,6.8599,145.8,145.78,28.72]
[1746596569767,4.48669492,145.79,145.78,33.4633624]
[1746596569972,6.8599,145.8,145.78,33.4633624]
[1746596570272,4.48669659,145.79,145.78,33.4633624]
[1746596570472,6.8599,145.8,145.78,33.4633624]
[1746596570776,11.34229079,145.79,145.78,28.72]
[1746596570971,6.8602,145.79,145.78,33.4633624]
[1746596571173,11.34228764,145.79,145.78,33.4633624]
[1746596571471,11.34229079,145.79,145.78,33.4633624]
[1746596572281,11.34229079,145.79,145.78,28.72]
[1746596573374,6.8602,145.79,145.78,28.72]
[1746596573676,16.10895525,145.79,145.78,28.72]
[1746596575481,9.24875525,145.79,145.78,28.72]
[1746596575978,9.24875525,145.79,145.78,35.5806]
[1746596576376,9.24875525,145.79,145.78,28.72]
[1746596577075,4.76528285,145.79,145.78,28.72]
[1746596577282,9.24138311,145.79,145.78,28.72]
[1746596577682,9.24138311,145.79,145.78,35.5806]
[1746596578678,9.24138311,145.79,145.78,28.72]
[1746596578982,9.2392174,145.79,145.78,28.72]
[1746596580280,16.0994174,145.79,145.78,28.72]
[1746596580878,9.2392174,145.79,145.76,4.7433624]
[1746596581085,4.47393455,145.78,145.76,4.7433624]
[1746596581281,9.2392174,145.77,145.76,4.7433624]
[1746596581483,16.1003174,145.77,145.76,4.7433624]
[1746596583084,16.09656219,145.77,145.76,4.7433624]
[1746596583485,9.23546219,145.77,145.72,621.3]
[1746596583683,4.47017934,145.76,145.72,621.3]
[1746596583886,6.8629,145.74,145.72,28.62]
[1746596584085,4.49119398,145.73,145.72,28.62]
[1746596584282,9.25647683,145.73,145.72,28.62]
[1746596586988,9.25647683,145.73,145.72,35.4835]
[1746596591790,4.76528285,145.73,145.72,35.4835]
[1746596591993,9.25019005,145.73,145.72,35.4835]
[1746596593186,4.76528285,145.73,145.72,35.4835]
[1746596593391,9.25138406,145.73,145.72,35.4835]
[1746596596193,9.25138406,145.73,145.72,28.62]
[1746596599295,9.25138406,145.73,145.72,35.4835]
[1746596602392,4.76528285,145.73,145.72,35.4835]
[1746596602697,9.25350018,145.73,145.72,35.4835]
[1746596602892,9.25350018,145.73,145.72,28.62]
[1746596603093,9.25350018,145.73,145.7,9.019e-05]
[1746596603296,4.48821733,145.72,145.7,9.019e-05]
[1746596603490,4.48821733,145.71,145.7,9.019e-05]
[1746596603691,9.25350018,145.71,145.7,9.019e-05]
[1746596603888,16.11740018,145.71,145.7,9.019e-05]
[1746596604294,16.11467561,145.71,145.7,9.019e-05]
[1746596608301,16.11467561,145.71,145.6,13.7378]
[1746596608302,9.25077561,145.71,145.6,13.7378]
[1746596608598,9.25077561,145.7,145.66,4.74860617]
[1746596608895,16.11587561,145.69,145.66,11.61480617]
[1746596609099,4.48549276,145.68,145.66,6.8662]
[1746596609399,4.76528285,145.67,145.66,11.61480617]
[1746596611196,2.0728,145.72,145.66,11.61480617]
[1746596611501,4.49595506,145.71,145.68,11.61390617]
[1746596611798,4.49595506,145.7,145.68,11.61390617]
[1746596612000,4.49595506,145.69,145.68,11.61390617]
[1746596612302,57.28,145.74,145.69,6.8649]
[1746596612505,11.36224863,145.73,145.7,4.74860617]
[1746596612704,4.49884863,145.72,145.7,4.74860617]
[1746596612998,4.49884863,145.71,145.7,4.74860617]
[1746596613703,4.49993702,145.71,145.7,4.74860617]
[1746596613902,11.36403702,145.71,145.69,28.64]
[1746596614098,6.8641,145.71,145.69,28.64]
[1746596614400,28.64,145.74,145.69,35.5047]
[1746596614591,4.49283297,145.73,145.69,35.5047]
[1746596614789,4.49283297,145.72,145.69,35.5047]
[1746596614990,4.49283297,145.71,145.69,35.5047]
[1746596615194,6.8635,145.72,145.69,35.5047]
[1746596615391,4.49324037,145.71,145.69,35.5047]
[1746596615601,6.8635,145.72,145.7,6.8644]
[1746596615801,4.49330796,145.71,145.7,6.8644]
[1746596616697,30.7529,145.76,145.69,36.05927306]
[1746596616996,4.49446598,145.75,145.69,36.05927306]
[1746596617196,4.49446598,145.74,145.69,36.05927306]
[1746596617397,4.49244858,145.73,145.69,36.05927306]
[1746596617699,6.8623,145.75,145.72,6.8632]
[1746596617901,4.49361875,145.74,145.72,6.8632]
[1746596618102,4.49361875,145.73,145.72,6.8632]
[1746596619203,4.49648112,145.73,145.72,6.8632]
[1746596621005,4.49879383,145.73,145.72,6.8632]
[1746596621298,8.9546,145.76,145.73,6.8628]
[1746596621500,4.49907135,145.75,145.73,35.5028]
[1746596621801,4.49907135,145.74,145.73,35.5028]
[1746596622198,59.3519,145.8,145.75,6.8618]
[1746596622399,4.49721188,145.79,145.75,6.8618]
[1746596622600,4.49721188,145.78,145.73,28.64]
[1746596622800,4.49721188,145.77,145.75,6.8616]
[1746596623004,4.49721188,145.76,145.75,6.8616]
[1746596623701,4.49721188,145.76,145.73,28.64]
[1746596623905,4.49721188,145.75,145.73,28.64]
[1746596624206,9.16203039,145.74,145.73,28.64]
[1746596624603,9.16431573,145.74,145.73,28.64]
[1746596625807,16.02681573,145.74,145.73,28.64]
[1746596626507,9.16784526,145.74,145.73,28.64]
[1746596626703,4.66481851,145.74,145.73,28.64]
[1746596627204,4.66481851,145.74,145.73,35.503]
[1746596628312,9.16977148,145.74,145.73,35.503]
[1746596630110,4.66481851,145.74,145.73,35.503]
[1746596630413,30.7519,145.8,145.75,6.8618]
[1746596630612,4.50280916,145.79,145.75,6.8618]
[1746596630911,11.36350916,145.78,145.75,6.8618]
[1746596631111,4.50280916,145.77,145.75,6.8618]
[1746596631313,4.50280916,145.76,145.75,6.8618]
[1746596631611,4.50093226,145.76,145.75,6.8618]
[1746596631808,6.8611,145.77,145.74,6.8623]
[1746596632712,4.49681953,145.76,145.74,6.8623]
[1746596632909,4.49681953,145.75,145.74,6.8623]
[1746596635312,4.49681953,145.75,145.73,42.92227306]
[1746596635611,4.49753674,145.74,145.73,28.64]
[1746596636613,4.49960932,145.74,145.73,28.64]
[1746596637812,4.49960932,145.74,145.73,35.503]
[1746596638808,4.49986997,145.74,145.73,35.503]
[1746596640015,4.49986997,145.74,145.73,28.64]
[1746596640619,11.36236997,145.74,145.73,28.64]
[1746596641318,6.8625,145.74,145.73,28.64]
[1746596641618,6.8623,145.75,145.73,28.64]
[1746596642217,4.49830166,145.74,145.73,28.64]
[1746596642716,4.59897989,145.74,145.73,35.503]
[1746596642913,9.09753876,145.74,145.73,35.503]
[1746596643320,4.59897989,145.74,145.73,35.503]
[1746596648125,6.8613,145.77,145.74,6.8624]
[1746596648627,9.10104899,145.76,145.74,6.8624]
[1746596648824,4.50025567,145.75,145.74,6.8624]
[1746596649026,4.50043104,145.75,145.74,6.8624]
[1746596649228,9.10122436,145.75,145.74,6.8624]
[1746596649427,9.10122102,145.75,145.74,6.8624]
[1746596650133,9.10122102,145.75,145.73,35.5027]
[1746596650437,6.8616,145.76,145.73,35.5027]
[1746596650730,6.8613,145.77,145.74,6.8623]
[1746596650927,28.68,145.79,145.73,28.64]
[1746596651533,6.861,145.78,145.75,6.8616]
[1746596655835,6.861,145.78,145.75,11.60656751]
[1746596658035,6.8611,145.77,145.75,11.60656751]
[1746596658939,6.8611,145.77,145.75,40.28656751]
[1746596659141,6.8611,145.77,145.75,35.5416]
[1746596659339,6.8611,145.77,145.75,33.42496751]
[1746596661039,6.8611,145.77,145.75,40.28696751]
[1746596662645,6.8611,145.77,145.75,33.42496751]
[1746596665045,6.8616,145.76,145.75,33.42496751]
[1746596665247,28.64,145.77,145.72,28.68]
[1746596665547,4.74496751,145.76,145.72,28.68]
[1746596665743,6.863,145.73,145.72,28.68]
[1746596666843,11.13796751,145.76,145.69,33.42496751]
[1746596667846,6.393,145.76,145.69,28.68]
[1746596668048,6.8644,145.7,145.69,28.68]
[1746596670955,6.8642,145.71,145.69,28.68]
[1746596671755,6.8644,145.7,145.69,28.68]
[1746596673056,28.64,145.73,145.66,28.64]
[1746596673057,6.8656,145.68,145.66,28.64]
[1746596673249,28.64,145.73,145.66,28.64]
[1746596673751,6.8658,145.67,145.66,28.64]
[1746596679260,6.8669,145.65,145.63,28.64]
[1746596679662,28.66,145.68,145.63,35.5074]
[1746596680360,6.8666,145.66,145.63,35.5074]
[1746596682160,6.8666,145.66,145.64,6.8672]
[1746596684265,6.8666,145.66,145.63,35.5075]
[1746596685964,6.866,145.67,145.64,6.8671]
[1746596689858,6.866,145.67,145.64,11.61879927]
[1746596693064,28.66,145.68,145.62,6.8678]
[1746596693270,28.66,145.68,145.61,33.39169927]
[1746596693271,33.41169927,145.68,145.61,33.39169927]
[1746596693668,6.8672,145.65,145.61,40.26009927]
[1746596693867,33.41169927,145.68,145.61,40.26009927]
[1746596694170,6.8674,145.64,145.61,40.26009927]
[1746596694368,6.8674,145.64,145.62,6.8681]
[1746596695568,6.8674,145.64,145.61,40.26009927]
[1746596696767,33.41169927,145.64,145.58,66.7611626]
[1746596696970,33.41169927,145.64,145.58,71.51286187]
[1746596697163,28.66,145.64,145.6,4.75169927]
[1746596697363,6.8684,145.62,145.6,4.75169927]
[1746596700669,6.8678,145.63,145.6,4.75169927]
[1746596700864,28.66,145.64,145.6,4.75169927]
[1746596701371,28.66,145.64,145.59,4.75169927]